fUSD/lending_fUSD_20251228
["ID","MTS","AMOUNT","RATE_DAILY","PERIOD"]
[399966848,1766952643518,-2000.0,0.00016216,2]
[399966850,1766952643528,-724.95814734,0.00016216,2]
[399966852,1766952643538,-1847.68423544,0.00016216,2]
[399966854,1766952643547,-2000.0,0.00016216,2]
[399966856,1766952643557,-2000.0,0.00016216,2]
[399966857,1766952643567,-1500.0,0.00016216,2]
[399966858,1766952643577,-2000.0,0.00016216,2]
[399966859,1766952643587,-2000.0,0.00016216,2]
[399966860,1766952643596,-500.0,0.00016216,2]
[399966861,1766952643606,-210.81728361,0.00016219,2]
[399966862,1766952643616,-507.81066232,0.00016219,2]
[399966863,1766952643626,-500.0,0.00016219,2]
[399966864,1766952643635,-150.0,0.00016219,2]
[399966865,1766952643646,-150.0,0.00016219,2]
[399966866,1766952643655,-500.0,0.00016219,2]
[399966867,1766952643665,-350.0,0.00016219,2]
[399966868,1766952643675,-150.0,0.00016219,2]
[399966869,1766952643686,-150.0,0.00016219,2]
[399966870,1766952643696,-433.0,0.00016235,2]
[399966871,1766952643706,-150.0,0.00016243,2]
[399966872,1766952643717,-500.0,0.00016246,2]
[399966873,1766952643727,-225.38136853,0.00016246,2]
[399966874,1766952643737,-150.0,0.00016246,2]
[399966875,1766952643747,-173.98935038,0.00016246,2]
[399966876,1766952643759,-150.0,0.00016246,2]
[399966877,1766952643770,-150.0,0.00016258,2]
[399966878,1766952643781,-11545.22440184,0.00016273,2]
[399966879,1766952643792,-500.0,0.00016274,2]
[399966880,1766952643804,-259.1636992,0.00016274,2]
[399966881,1766952643815,-150.0,0.00016274,2]
[399966882,1766952643826,-150.0,0.00016274,2]
[399966883,1766952643835,-150.0,0.00016279,2]
[399966884,1766952643845,-500.0,0.00016301,2]
[399966885,1766952643856,-250.0,0.00016301,2]
[399966886,1766952643867,-150.0,0.00016307,2]
[399966887,1766952643876,-150.0,0.00016307,2]
[399966888,1766952643886,-397.0,0.00016324,2]
[399966889,1766952643896,-500.0,0.00016328,2]
[399966890,1766952643907,-150.0,0.00016329,2]
[399966891,1766952643917,-150.0,0.00016339,2]
[399966892,1766952643927,-150.0,0.00016349,2]
[399966893,1766952643937,-1381.63,0.00016355,2]
[399966894,1766952643947,-500.0,0.00016356,2]
[399966895,1766952643958,-162.0,0.0001636,2]
[399966896,1766952643969,-579.81774733,0.00016361,2]
[399966897,1766952643980,-500.0,0.00016361,2]
[399966898,1766952643990,-500.0,0.00016361,2]
[399966899,1766952644000,-500.0,0.00016361,2]
[399966900,1766952644009,-500.0,0.00016361,2]
[399966901,1766952644020,-500.0,0.00016361,2]
[399966902,1766952644033,-500.0,0.00016361,2]
[399966903,1766952644042,-500.0,0.00016361,2]
[399966904,1766952644052,-500.0,0.00016361,2]
[399966905,1766952644063,-483.08577501,0.00016361,2]
[399966906,1766952644073,-500.0,0.00016361,2]
[399966907,1766952644082,-500.0,0.00016361,2]
[399966908,1766952644092,-500.0,0.00016361,2]
[399966909,1766952644103,-500.0,0.00016361,2]
[399966910,1766952644113,-500.0,0.00016361,2]
[399966911,1766952644124,-500.0,0.00016361,2]
[399966912,1766952644134,-621.72362606,0.00016361,2]
[399966913,1766952644145,-500.0,0.00016361,2]
[399966914,1766952644155,-500.0,0.00016361,2]
[399966915,1766952644166,-552.54951057,0.00016361,2]
[399966916,1766952644178,-500.0,0.00016361,2]
[399966917,1766952644189,-500.0,0.00016361,2]
[399966918,1766952644198,-526.32491477,0.00016361,2]
[399966919,1766952644208,-306.29015372,0.00016361,2]
[399966920,1766952644218,-500.0,0.00016361,2]
[399966921,1766952644227,-500.0,0.00016361,2]
[399966922,1766952644237,-500.0,0.00016361,2]
[399966923,1766952644247,-500.0,0.00016361,2]
[399966924,1766952644256,-500.0,0.00016361,2]
[399966925,1766952644266,-500.0,0.00016361,2]
[399966926,1766952644275,-500.0,0.00016361,2]
[399966927,1766952644285,-500.0,0.00016361,2]
[399966928,1766952644294,-649.44280484,0.00016361,2]
[399966929,1766952644304,-500.0,0.00016361,2]
[399966930,1766952644314,-500.0,0.00016361,2]
[399966931,1766952644323,-500.0,0.00016361,2]
[399966932,1766952644333,-455.06899995,0.00016361,2]
[399966933,1766952644343,-19515.89523469,0.00016362,2]
[399966934,1766952644352,-150.0,0.00016369,2]
[399966935,1766952644363,-500.0,0.00016383,2]
[399966936,1766952644373,-150.0,0.00016384,2]
[399966937,1766952644384,-150.0,0.0001642,2]
[399966938,1766952644394,-150.0,0.0001642,2]
[399966939,1766952644404,-150.0,0.0001642,2]
[399966940,1766952644413,-150.0,0.0001642,2]
[399966941,1766952644423,-150.0,0.0001642,2]
[399966942,1766952644432,-150.0,0.0001642,2]
[399966943,1766952644441,-152.09829773,0.00016425,2]
[399966944,1766952644452,-150.0,0.00016438,2]
[399966945,1766952644461,-7920.24,0.00016438,2]
[399966946,1766952644472,-150.0,0.00016438,2]
[399966947,1766952644481,-150.0,0.00016455,2]
[399966948,1766952644491,-500.0,0.00016463,2]
[399966949,1766952644502,-150.0,0.00016465,2]
[399966950,1766952644511,-189.64,0.00016466,2]
[399966951,1766952644521,-11545.22440184,0.00016482,2]
[399966952,1766952644531,-397.0,0.00016483,2]
[399966953,1766952644541,-500.0,0.0001649,2]
[399966954,1766952644553,-215.48135853,0.00016493,2]
[399966955,1766952644565,-150.0,0.00016493,2]
[399966956,1766952644575,-255.0,0.00016497,2]
[399966957,1766952644585,-150.0,0.00016501,2]
[399966958,1766952644597,-1754.0,0.00016505,2]
[399966959,1766952644608,-443.51805555,0.00016521,2]
[399966960,1766952644618,-1000.0,0.00016521,2]
[399966961,1766952644628,-503.73099585,0.00016521,2]
[399966962,1766952644639,-1000.0,0.00016521,2]
[399966963,1766952644649,-150.0,0.00016523,2]
[399966964,1766952644658,-171.92,0.00016524,2]
[399966965,1766952644668,-150.0,0.00016533,2]
[399966966,1766952644678,-427.55498217,0.00016543,2]
[399966967,1766952644689,-150.0,0.00016548,2]
[399966968,1766952644698,-1754.0,0.0001655,2]
[399966969,1766952644708,-150.0,0.00016562,2]
[399966970,1766952644717,-150.0,0.00016562,2]
[399966971,1766952644727,-150.0,0.00016582,2]
[399966972,1766952644737,-1754.0,0.00016595,2]
[399966973,1766952644747,-1000.0,0.000166,2]
[399966974,1766952644757,-150.0,0.00016603,2]
[399966975,1766952644767,-1381.63,0.00016629,2]
[399966976,1766952644777,-255.0,0.00016636,2]
[399966977,1766952644787,-1754.0,0.0001664,2]
[399966978,1766952644797,-150.0,0.00016647,2]
[399966979,1766952644808,-150.0,0.00016647,2]
[399966980,1766952644818,-150.0,0.00016658,2]
[399966981,1766952644828,-397.0,0.00016658,2]
[399966982,1766952644837,-1133.35360397,0.0001666,2]
[399966983,1766952644847,-1546.342,0.00016661,2]
[399966984,1766952644856,-181.326,0.00016661,2]
[399966985,1766952644868,-150.0,0.00016663,2]
[399966986,1766952644878,-150.0,0.00016668,2]
[399966987,1766952644890,-587.0,0.00016672,2]
[399966988,1766952644900,-587.0,0.00016673,2]
[399966989,1766952644911,-150.0,0.00016677,2]
[399966990,1766952644921,-1754.0,0.00016685,2]
[399966991,1766952644931,-255.0,0.0001669,2]
[399966992,1766952644940,-11545.22440184,0.00016691,2]
[399966993,1766952644950,-574.12855637,0.00016697,2]
[399966994,1766952644960,-226.50249047,0.00016697,2]
[399966995,1766952644970,-255.0,0.000167,2]
[399966996,1766952644980,-150.0,0.00016703,2]
[399966997,1766952644991,-150.0,0.00016703,2]
[399966998,1766952645002,-150.0,0.00016703,2]
[399966999,1766952645013,-150.0,0.00016712,2]
[399967000,1766952645027,-1754.0,0.0001673,2]
[399967001,1766952645037,-150.0,0.00016744,2]
[399967002,1766952645047,-150.0,0.0001676,2]
[399967004,1766952645057,-195.54717431,0.00016764,2]
[399967006,1766952645383,-2500.0,0.00016764,2]
[399967007,1766952645397,-218.2586549,0.00016764,2]
[399967008,1766952645407,-421.98541227,0.00016764,2]
[399967009,1766952645416,-2500.0,0.00016764,2]
[399967010,1766952645426,-1000.0,0.00016764,2]
[399967011,1766952645435,-150.0,0.00016767,2]
[399967012,1766952645444,-150.0,0.00016774,2]
[399967013,1766952645454,-1754.0,0.00016775,2]
[399967014,1766952645463,-1000.0,0.000168,2]
[399967015,1766952645472,-2351.0,0.00016803,2]
[399967016,1766952645482,-1754.0,0.0001682,2]
[399967017,1766952645491,-150.0,0.00016822,2]
[399967018,1766952645500,-150.0,0.00016825,2]
[399967019,1766952645509,-150.0,0.00016832,2]
[399967020,1766952645518,-150.0,0.00016845,2]
[399967021,1766952645527,-1754.0,0.00016865,2]
[399967022,1766952645536,-150.0,0.00016873,2]
[399967023,1766952645545,-150.0,0.00016877,2]
[399967024,1766952645554,-150.0,0.0001688,2]
[399967025,1766952645563,-255.0,0.0001689,2]
[399967026,1766952645572,-500.0,0.00016899,2]
[399967027,1766952645581,-500.0,0.00016899,2]
[399967028,1766952645590,-500.0,0.00016899,2]
[399967029,1766952645599,-22011.09,0.000169,2]
[399967030,1766952645608,-1000.0,0.000169,2]
[399967031,1766952645617,-1000.0,0.000169,2]
[399967032,1766952645626,-11545.22440184,0.000169,2]
[399967033,1766952645635,-352.50332532,0.000169,2]
[399967034,1766952645646,-427.55498217,0.000169,2]
[399967035,1766952645655,-1381.63,0.00016903,2]
[399967036,1766952645665,-150.0,0.00016905,2]
[399967037,1766952645673,-1754.0,0.0001691,2]
[399967038,1766952645683,-255.0,0.00016918,2]
[399967039,1766952645692,-150.0,0.00016932,2]
[399967040,1766952645701,-203.9629744,0.00016949,2]
[399967041,1766952645710,-1754.0,0.00016955,2]
[399967042,1766952645719,-290.25,0.00016964,2]
[399967043,1766952645728,-150.11199507,0.00016973,2]
[399967044,1766952645737,-150.0,0.00016973,2]
[399967045,1766952645746,-150.0,0.00016973,2]
[399967046,1766952645755,-250.0,0.00016976,2]
[399967047,1766952645765,-271.94730123,0.00016986,2]
[399967048,1766952645774,-261.52919058,0.00016986,2]
[399967049,1766952645783,-291.19227716,0.00016986,2]
[399967050,1766952645792,-193.20504799,0.00016986,2]
[399967051,1766952645802,-298.68946488,0.00016986,2]
[399967052,1766952645811,-159.10391865,0.00016986,2]
[399967053,1766952645822,-204.47837642,0.00016986,2]
[399967055,1766952645832,-257.38593742,0.00016986,2]
[399967056,1766952645842,-288.29142727,0.00016986,2]
[399967057,1766952645851,-191.18737209,0.00016986,2]
[399967058,1766952645860,-273.23141721,0.00016986,2]
[399967059,1766952645870,-266.31997745,0.00016986,2]
[399967060,1766952645879,-100000.0,0.0001699,2]
[399967062,1766952645890,-151.0,0.00016996,2]
[399967064,1766952645899,-533.93594502,0.00016998,2]
[399967066,1766952645908,-500.0,0.00016998,2]
[399967068,1766952645918,-193.237428,0.00016998,2]
[399967069,1766952645927,-500.0,0.00016998,2]
[399967070,1766952645936,-500.0,0.00016998,2]
[399967071,1766952645945,-500.0,0.00016998,2]
[399967072,1766952645955,-500.0,0.00016998,2]
[399967073,1766952645964,-1108.21605715,0.00016999,5]
[399967074,1766952645974,-1108.21605715,0.00016999,5]
[399967075,1766952645983,-1036.83747208,0.00016999,5]
[399967076,1766952645992,-1036.83747208,0.00016999,5]
[399967077,1766952646002,-1036.83747208,0.00016999,5]
[399967078,1766952646011,-1074.35738195,0.00016999,5]
[399967079,1766952646024,-1074.35738196,0.00016999,5]
[399967080,1766952646033,-593207.681086,0.00016999,2]
[399967081,1766952646043,-4722.5306994,0.00016999,2]
[399967082,1766952646052,-300.0,0.00016999,2]
[399967083,1766952646062,-1252.1088087,0.00016999,2]
[399967084,1766952646071,-300.0,0.00016999,2]
[399967085,1766952646081,-2409.3789836,0.00016999,2]
[399967086,1766952646090,-300.0,0.00016999,2]
[399967087,1766952646099,-1193.7279291,0.00016999,2]
[399967088,1766952646109,-12509.5036646,0.00016999,2]
[399967089,1766952646118,-500.0,0.00016999,2]
[399967090,1766952646127,-500.0,0.00016999,2]
[399967091,1766952646136,-464.2399143,0.00016999,2]
[399967092,1766952646145,-500.0,0.00016999,2]
[399967093,1766952646155,-300.0,0.00016999,2]
[399967094,1766952646164,-666.0,0.00016999,2]
[399967095,1766952646175,-415828.69177378,0.00017,2]
[399967098,1766952646563,-173.02989345,0.00014399,2]
[399967099,1766952646573,-3966.1264,0.00014575,2]
[399967100,1766952646583,-5227.64976659,0.00014955,2]
[399967101,1766952646601,-1491.42729519,0.00014955,2]
[399967102,1766952646611,-1539.32541626,0.00015233,2]
[399967103,1766952646622,-2705.5354257,0.00015233,2]
[399967104,1766952646634,-2474.21621982,0.00015233,2]
[399967105,1766952646643,-45817.3415123,0.00017,2]
[399967106,1766952646655,-505.01796416,0.00017,2]
[399967107,1766952646666,-2134.87274842,0.00017,2]
[399967108,1766952646677,-4802.40137042,0.00017,2]
[399967109,1766952646687,-16733.56247242,0.00017,2]
[399967110,1766952646699,-13567.95713481,0.00017,2]
[399967111,1766952732697,1067.95132778,0.00014439,5]
[399967112,1766952948474,371.0,0.00030137,120]
[399967113,1766952968363,3850.684563,7.945e-05,2]
[399967114,1766953021600,500.0,0.00030136,120]
[399967115,1766953021942,500.0,0.00030136,120]
[399967116,1766953022181,500.0,0.00030136,120]
[399967117,1766953022663,500.0,0.00030136,120]
[399967118,1766953237602,1600.0,0.00013287,2]
[399967119,1766953315672,166.66,0.00012605,2]
[399967120,1766953315888,166.66,0.0001287,2]
[399967121,1766953316097,166.66,0.00013136,2]
[399967122,1766953316291,166.66,0.00013401,2]
[399967125,1766953587547,154.26,0.00013239,2]
[399967127,1766953620949,-500.0,0.00013513,2]
[399967128,1766953620970,-300.0,0.00013521,2]
[399967129,1766953620990,-193.0,0.00013529,2]
[399967130,1766953621010,-250.0,0.00013546,2]
[399967131,1766953621031,-193.0,0.00013605,2]
[399967132,1766953621051,-193.0,0.00013605,2]
[399967133,1766953621071,-189.44319136,0.00013605,2]
[399967134,1766953621092,-166.66,0.00013666,2]
[399967135,1766953621116,-613.49,0.00013699,2]
[399967136,1766953621138,-359.87,0.00013699,2]
[399967137,1766953621159,-566.0,0.00013768,2]
[399967138,1766953621181,-1200.0,0.00013797,2]
[399967139,1766953621203,-2117.10087397,0.00013798,2]
[399967140,1766953621224,-8.43593467,0.00013894,2]
[399967145,1766953671795,200.0,0.00013297,2]
[399967146,1766953679320,2228.66,0.00013297,2]
[399967154,1766953804184,3367.44,0.00014055,14]
[399967161,1766953831906,-200.37128802,0.00013832,2]
[399967163,1766953831917,-300.0,0.0001384,2]
[399967164,1766953831926,-600.0,0.00013847,2]
[399967165,1766953831935,-2500.0,0.00013847,2]
[399967167,1766953831944,-195.0,0.00013863,2]
[399967168,1766953831953,-300.0,0.00013868,2]
[399967169,1766953831965,-300.0,0.00013868,2]
[399967170,1766953831975,-224.6252533,0.00013868,2]
[399967171,1766953831984,-795.36,0.00013895,2]
[399967172,1766953831993,-600.0,0.00013903,2]
[399967173,1766953832003,-600.0,0.00013903,2]
[399967174,1766953832016,-251.42741313,0.00013903,2]
[399967175,1766953832025,-2500.0,0.00013903,2]
[399967176,1766953832034,-2521.82609592,0.00013903,2]
[399967177,1766953832044,-166.66,0.00013932,2]
[399967178,1766953832054,-1200.0,0.00013993,2]
[399967179,1766953832064,-300.0,0.00013993,2]
[399967180,1766953832074,-267.2218639,0.00013994,2]
[399967181,1766953832084,-11928.4827667,0.00013994,2]
[399967182,1766953832093,-150.0,0.00014052,2]
[399967183,1766953832103,-151.0,0.00014089,2]
[399967184,1766953832112,-151.0,0.00014089,2]
[399967185,1766953832122,-150.0,0.0001409,2]
[399967186,1766953832131,-500.0,0.00014091,2]
[399967188,1766953832141,-378.02621773,0.00014091,2]
[399967190,1766953832150,-500.05783873,0.00014091,2]
[399967191,1766953832162,-500.0,0.00014091,2]
[399967192,1766953832171,-500.0,0.00014091,2]
[399967193,1766953832180,-500.0,0.00014091,2]
[399967196,1766953832190,-500.0,0.00014091,2]
[399967199,1766953832199,-170.09376054,0.00014091,2]
[399967202,1766953832208,-500.0,0.00014091,2]
[399967205,1766953832218,-212.73729775,0.00014091,2]
[399967208,1766953832227,-500.0,0.00014091,2]
[399967211,1766953832237,-500.0,0.00014091,2]
[399967213,1766953832246,-500.0,0.00014091,2]
[399967217,1766953832255,-646.05350061,0.00014091,2]
[399967219,1766953832265,-500.0,0.00014091,2]
[399967222,1766953832274,-500.0,0.00014091,2]
[399967225,1766953832284,-500.0,0.00014091,2]
[399967228,1766953832293,-267.11558772,0.00014091,2]
[399967230,1766953832303,-500.0,0.00014091,2]
[399967232,1766953832312,-500.0,0.00014091,2]
[399967235,1766953832322,-500.0,0.00014091,2]
[399967237,1766953832334,-500.0,0.00014091,2]
[399967239,1766953832343,-500.0,0.00014091,2]
[399967241,1766953832355,-500.0,0.00014091,2]
[399967243,1766953832365,-500.0,0.00014091,2]
[399967245,1766953832375,-500.0,0.00014091,2]
[399967247,1766953832383,-500.0,0.00014091,2]
[399967249,1766953832392,-500.0,0.00014091,2]
[399967251,1766953832402,-500.0,0.00014091,2]
[399967253,1766953832411,-500.0,0.00014091,2]
[399967255,1766953832419,-500.0,0.00014091,2]
[399967257,1766953832429,-500.0,0.00014091,2]
[399967259,1766953832440,-500.0,0.00014091,2]
[399967275,1766953832449,-500.0,0.00014091,2]
[399967276,1766953832718,-500.0,0.00014091,2]
[399967277,1766953832729,-500.0,0.00014091,2]
[399967278,1766953832738,-500.0,0.00014091,2]
[399967279,1766953832748,-500.0,0.00014091,2]
[399967280,1766953832757,-500.0,0.00014091,2]
[399967281,1766953832766,-500.0,0.00014091,2]
[399967282,1766953832776,-232.88173673,0.00014091,2]
[399967284,1766953832787,-500.0,0.00014091,2]
[399967285,1766953832796,-500.0,0.00014091,2]
[399967287,1766953832805,-500.0,0.00014091,2]
[399967289,1766953832815,-500.0,0.00014091,2]
[399967291,1766953832824,-500.0,0.00014091,2]
[399967293,1766953832833,-500.0,0.00014091,2]
[399967295,1766953832843,-500.0,0.00014091,2]
[399967297,1766953832852,-500.0,0.00014091,2]
[399967299,1766953832861,-500.0,0.00014091,2]
[399967301,1766953832870,-500.0,0.00014091,2]
[399967303,1766953832880,-500.0,0.00014091,2]
[399967305,1766953832889,-500.0,0.00014091,2]
[399967307,1766953832898,-500.0,0.00014091,2]
[399967309,1766953832910,-500.0,0.00014091,2]
[399967311,1766953832920,-500.0,0.00014091,2]
[399967313,1766953832930,-500.0,0.00014091,2]
[399967315,1766953832939,-500.0,0.00014091,2]
[399967317,1766953832948,-500.0,0.00014091,2]
[399967319,1766953832957,-500.0,0.00014091,2]
[399967321,1766953832966,-500.0,0.00014091,2]
[399967323,1766953832975,-500.0,0.00014091,2]
[399967325,1766953832985,-500.0,0.00014091,2]
[399967327,1766953832994,-500.0,0.00014091,2]
[399967329,1766953833003,-500.0,0.00014091,2]
[399967331,1766953833012,-500.0,0.00014091,2]
[399967333,1766953833021,-500.0,0.00014091,2]
[399967335,1766953833031,-500.0,0.00014091,2]
[399967337,1766953833039,-478.93343101,0.00014091,2]
[399967339,1766953833052,-500.0,0.00014091,2]
[399967341,1766953833062,-500.0,0.00014091,2]
[399967343,1766953833071,-500.0,0.00014091,2]
[399967345,1766953833081,-500.0,0.00014091,2]
[399967347,1766953833090,-500.0,0.00014091,2]
[399967349,1766953833099,-500.0,0.00014091,2]
[399967351,1766953833109,-500.0,0.00014091,2]
[399967353,1766953833118,-500.0,0.00014091,2]
[399967355,1766953833127,-500.0,0.00014091,2]
[399967357,1766953833137,-500.0,0.00014091,2]
[399967359,1766953833147,-600.00000001,0.00014091,2]
[399967361,1766953833156,-500.0,0.00014091,2]
[399967363,1766953833166,-500.0,0.00014091,2]
[399967365,1766953833175,-500.0,0.00014091,2]
[399967367,1766953833186,-500.0,0.00014091,2]
[399967369,1766953833195,-500.0,0.00014091,2]
[399967371,1766953833204,-500.0,0.00014091,2]
[399967373,1766953833214,-500.0,0.00014091,2]
[399967375,1766953833223,-500.0,0.00014091,2]
[399967378,1766953833233,-500.0,0.00014091,2]
[399967380,1766953833243,-500.0,0.00014091,2]
[399967382,1766953833253,-453.62848322,0.00014091,2]
[399967384,1766953833262,-500.0,0.00014091,2]
[399967386,1766953833272,-500.0,0.00014091,2]
[399967387,1766953833281,-41719.31975171,0.00014092,2]
[399967390,1766953833295,-570.88444884,0.00014092,2]
[399967392,1766953833306,-842.86860763,0.00014092,2]
[399967394,1766953833317,-1926.24344674,0.00014092,2]
[399967396,1766953833328,-9540.45965945,0.00014092,2]
[399967399,1766953833339,-1887.52207154,0.00014092,2]
[399967675,1766953838155,-20274.93599447,0.00013548,2]
[399967677,1766953840101,-2291.63780174,0.00013548,2]
[399967678,1766953840158,-2940.87620379,0.00013548,2]
[399967679,1766953840168,-38602.71145325,0.00014092,2]
[399967680,1766953840184,-617.33224784,0.00014092,2]
[399967681,1766953840197,-4011.25159732,0.00014092,2]
[399967682,1766953840208,-37889.36476936,0.00014092,2]
[399967683,1766953840268,-371.67173234,0.00014092,2]
[399967684,1766953840280,-479.02705915,0.00014092,2]
[399967685,1766953840323,-861541.34315483,0.00014092,2]
[399967686,1766953840332,-237.83643607,0.00014094,2]
[399967687,1766953840343,-500.0,0.00014094,2]
[399967688,1766953840352,-200.0,0.00014094,2]
[399967689,1766953840361,-500.0,0.00014094,2]
[399967690,1766953840371,-150.0,0.00014094,2]
[399967691,1766953840380,-150.0,0.00014094,2]
[399967692,1766953840389,-500.0,0.00014094,2]
[399967693,1766953840399,-500.0,0.00014094,2]
[399967694,1766953840408,-150.0,0.00014094,2]
[399967695,1766953840418,-150.0,0.00014094,2]
[399967696,1766953840428,-150.0,0.00014094,2]
[399967697,1766953840443,-244.86390051,0.00014094,2]
[399967698,1766953840454,-150.0,0.00014094,2]
[399967699,1766953840465,-500.0,0.00014121,2]
[399967700,1766953840475,-500.0,0.00014121,2]
[399967701,1766953840485,-150.0,0.00014121,2]
[399967702,1766953840496,-164.91531166,0.00014121,2]
[399967703,1766953840508,-500.0,0.00014121,2]
[399967704,1766953840517,-500.0,0.00014121,2]
[399967705,1766953840527,-150.0,0.00014121,2]
[399967706,1766953840538,-176.84626368,0.00014121,2]
[399967708,1766953840547,-200.0,0.00014121,2]
[399967709,1766953840556,-150.0,0.00014121,2]
[399967710,1766953840566,-3527.83730463,0.00014138,2]
[399967711,1766953840576,-633.9389597,0.00014149,2]
[399967712,1766953840586,-500.0,0.00014149,2]
[399967713,1766953840596,-150.0,0.00014149,2]
[399967715,1766953840605,-500.0,0.00014149,2]
[399967716,1766953840614,-350.0,0.00014149,2]
[399967717,1766953840625,-150.0,0.00014149,2]
[399967718,1766953840635,-151.0,0.00014157,2]
[399967719,1766953840644,-151.0,0.00014157,2]
[399967720,1766953840653,-151.0,0.00014157,2]
[399967721,1766953840663,-200.0,0.00014157,2]
[399967722,1766953840672,-151.0,0.00014157,2]
[399967723,1766953840682,-151.0,0.00014157,2]
[399967724,1766953840691,-151.0,0.00014157,2]
[399967725,1766953840701,-151.0,0.00014157,2]
[399967726,1766953840710,-151.0,0.00014157,2]
[399967727,1766953840719,-151.0,0.00014157,2]
[399967728,1766953840728,-158.86938583,0.00014157,2]
[399967729,1766953840739,-504.00666552,0.00014157,2]
[399967730,1766953840749,-208.86276468,0.00014157,2]
[399967731,1766953840760,-150.0,0.00014165,2]
[399967732,1766953840769,-500.0,0.00014165,2]
[399967733,1766953840778,-500.0,0.00014165,2]
[399967734,1766953840788,-152.95414215,0.00014165,2]
[399967735,1766953840799,-1295.17,0.00014165,2]
[399967736,1766953840811,-500.0,0.00014176,2]
[399967737,1766953840822,-225.38136853,0.00014176,2]
[399967738,1766953840833,-173.98935038,0.00014176,2]
[399967739,1766953840843,-150.0,0.00014176,2]
[399967740,1766953840852,-151.47551324,0.00014192,2]
[399967741,1766953840861,-500.0,0.00014192,2]
[399967742,1766953840871,-500.0,0.00014192,2]
[399967743,1766953840881,-500.0,0.00014204,2]
[399967744,1766953840891,-150.0,0.00014204,2]
[399967745,1766953840900,-210.81728361,0.0001422,2]
[399967746,1766953840909,-500.0,0.0001422,2]
[399967747,1766953840919,-500.0,0.00014231,2]
[399967748,1766953840928,-250.0,0.00014231,2]
[399967749,1766953840938,-1743.01949829,0.00014238,2]
[399967750,1766953840947,-163.86900378,0.00014247,2]
[399967751,1766953840956,-500.0,0.00014258,2]
[399967752,1766953840966,-500.0,0.00014286,2]
[399967753,1766953840975,-333.20282341,0.00014302,2]
[399967754,1766953840984,-500.0,0.00014313,2]
[399967755,1766953840994,-11928.48276664,0.00014317,2]
[399967756,1766953841003,-2500.0,0.0001434,2]
[399967757,1766953841012,-500.0,0.00014341,2]
[399967758,1766953841022,-15940.75136376,0.00014349,2]
[399967759,1766953841030,-10703.94257588,0.00014359,2]
[399967760,1766953841039,-500.0,0.00014365,2]
[399967761,1766953841050,-500.0,0.00014368,2]
[399967762,1766953841059,-620.0,0.00014395,2]
[399967763,1766953841068,-267.22186385,0.00014409,2]
[399967764,1766953841078,-1295.17,0.00014439,2]
[399967765,1766953841087,-500.0,0.00014439,2]
[399967766,1766953841096,-500.0,0.00014439,2]
[399967767,1766953841105,-500.0,0.00014439,2]
[399967768,1766953841115,-500.0,0.00014439,2]
[399967769,1766953841124,-483.08577501,0.00014439,2]
[399967770,1766953841134,-500.0,0.00014439,2]
[399967771,1766953841143,-500.0,0.00014439,2]
[399967772,1766953841152,-552.54951057,0.00014439,2]
[399967773,1766953841161,-500.0,0.00014439,2]
[399967774,1766953841171,-500.0,0.00014439,2]
[399967775,1766953841180,-500.0,0.00014439,2]